[Event "Titled Tuesday Blitz April 18 Early 2023"]
[White "Djordjevic, Vuk"]
[Black "Stepanencu, Nicodim-Cosmin"]
[WhiteFideId "902098"]
[BlackFideId "1256220"]
[WhiteElo "2452"]
[BlackElo "2185"]
[Result "1-0"]
[Round "04"]
[TimeControl "180+2"]
[Date "2023.04.18"]
[WhiteClock "0:00:07"]
[BlackClock "0:00:05"]

1. d4 {[%clk 0:03:00]}  Nf6 {[%clk 0:02:59]} 2. Bg5 {[%clk 0:03:00]}  e6 {[%clk 0:02:58]} 3. e4 {[%clk 0:03:00]}  h6 {[%clk 0:02:57]} 4. Bxf6 {[%clk 0:03:00]}  Qxf6 {[%clk 0:02:58]} 5. c3 {[%clk 0:03:00]}  Nc6 {[%clk 0:02:52]} 6. e5 {[%clk 0:02:52]}  Qg6 {[%clk 0:02:49]} 7. f4 {[%clk 0:02:35]}  d6 {[%clk 0:02:36]} 8. Nd2 {[%clk 0:02:28]}  Bd7 {[%clk 0:02:32]} 9. Ngf3 {[%clk 0:02:16]}  Be7 {[%clk 0:02:33]} 10. Qe2 {[%clk 0:01:14]}  O-O-O {[%clk 0:02:32]} 11. g3 {[%clk 0:01:04]}  Rhe8 {[%clk 0:02:26]} 12. Bg2 {[%clk 0:01:04]}  f6 {[%clk 0:02:27]} 13. exd6 {[%clk 0:00:58]}  Bxd6 {[%clk 0:02:27]} 14. O-O-O {[%clk 0:00:47]}  Qf5 {[%clk 0:02:09]} 15. Nc4 {[%clk 0:00:39]}  Bf8 {[%clk 0:02:03]} 16. Nh4 {[%clk 0:00:39]}  Qh7 {[%clk 0:02:01]} 17. Be4 {[%clk 0:00:37]}  Qg8 {[%clk 0:01:56]} 18. Ng6 {[%clk 0:00:34]}  Kb8 {[%clk 0:01:45]} 19. Rhe1 {[%clk 0:00:33]}  Qf7 {[%clk 0:01:41]} 20. Nh4 {[%clk 0:00:25]}  Ne7 {[%clk 0:01:32]} 21. Na5 {[%clk 0:00:23]}  Nd5 {[%clk 0:01:10]} 22. Bg6 {[%clk 0:00:22]}  Qe7 {[%clk 0:01:06]} 23. Bxe8 {[%clk 0:00:22]}  Rxe8 {[%clk 0:01:05]} 24. Nb3 {[%clk 0:00:22]}  Qd6 {[%clk 0:01:02]} 25. Ng6 {[%clk 0:00:22]}  Ba4 {[%clk 0:00:56]} 26. Nxf8 {[%clk 0:00:18]}  Qxf8 {[%clk 0:00:57]} 27. Qc4 {[%clk 0:00:18]}  Nb6 {[%clk 0:00:57]} 28. Qc5 {[%clk 0:00:17]}  Qf7 {[%clk 0:00:55]} 29. f5 {[%clk 0:00:13]}  exf5 {[%clk 0:00:49]} 30. Rxe8+ {[%clk 0:00:10]}  Qxe8 {[%clk 0:00:50]} 31. Qxf5 {[%clk 0:00:10]}  Qe2 {[%clk 0:00:49]} 32. Qc2 {[%clk 0:00:10]}  Qb5 {[%clk 0:00:45]} 33. Re1 {[%clk 0:00:07]}  a6 {[%clk 0:00:40]} 34. Qe2 {[%clk 0:00:05]}  Nc4 {[%clk 0:00:37]} 35. Nc5 {[%clk 0:00:04]}  Nd6 {[%clk 0:00:04]} 36. Qxb5 {[%clk 0:00:03]}  Bxb5 {[%clk 0:00:05]} 37. Ne6 {[%clk 0:00:03]}  g6 {[%clk 0:00:05]} 38. Nf4 {[%clk 0:00:03]}  g5 {[%clk 0:00:06]} 39. Nd5 {[%clk 0:00:04]}  Bc4 {[%clk 0:00:07]} 40. Nxf6 {[%clk 0:00:04]}  Bxa2 {[%clk 0:00:07]} 41. Ng4 {[%clk 0:00:05]}  h5 {[%clk 0:00:07]} 42. Nf6 {[%clk 0:00:05]}  h4 {[%clk 0:00:08]} 43. Re5 {[%clk 0:00:05]}  hxg3 {[%clk 0:00:07]} 44. hxg3 {[%clk 0:00:06]}  g4 {[%clk 0:00:06]} 45. Nxg4 {[%clk 0:00:05]}  Bc4 {[%clk 0:00:07]} 46. Ne3 {[%clk 0:00:05]}  Bd3 {[%clk 0:00:08]} 47. g4 {[%clk 0:00:05]}  Nf7 {[%clk 0:00:08]} 48. Re8+ {[%clk 0:00:06]}  Ka7 {[%clk 0:00:08]} 49. Nd5 {[%clk 0:00:05]}  c6 {[%clk 0:00:08]} 50. Nf4 {[%clk 0:00:06]}  Bc4 {[%clk 0:00:07]} 51. Re7 {[%clk 0:00:06]}  Ng5 {[%clk 0:00:08]} 52. Re5 {[%clk 0:00:06]}  Nf3 {[%clk 0:00:09]} 53. Re3 {[%clk 0:00:06]}  Ng5 {[%clk 0:00:09]} 54. Ne2 {[%clk 0:00:07]}  Bd5 {[%clk 0:00:09]} 55. Re5 {[%clk 0:00:05]}  Nf3 {[%clk 0:00:09]} 56. Rf5 {[%clk 0:00:06]}  Be4 {[%clk 0:00:08]} 57. Rf4 {[%clk 0:00:06]}  Ng5 {[%clk 0:00:09]} 58. Ng3 {[%clk 0:00:06]}  Bd3 {[%clk 0:00:10]} 59. Kd2 {[%clk 0:00:05]}  Bg6 {[%clk 0:00:09]} 60. Rf6 {[%clk 0:00:05]}  Be8 {[%clk 0:00:10]} 61. Rf5 {[%clk 0:00:05]}  Ne6 {[%clk 0:00:09]} 62. Re5 {[%clk 0:00:05]}  Bd7 {[%clk 0:00:08]} 63. g5 {[%clk 0:00:05]}  Kb8 {[%clk 0:00:08]} 64. g6 {[%clk 0:00:05]}  Kc7 {[%clk 0:00:09]} 65. Nf5 {[%clk 0:00:05]}  Ng5 {[%clk 0:00:02]} 66. g7 {[%clk 0:00:04]}  Be6 {[%clk 0:00:02]} 67. Rxe6 {[%clk 0:00:04]}  Nxe6 {[%clk 0:00:03]} 68. g8=Q {[%clk 0:00:05]}  Nf4 {[%clk 0:00:03]} 69. Qf7+ {[%clk 0:00:05]}  Kb6 {[%clk 0:00:03]} 70. Nd6 {[%clk 0:00:05]}  Nd5 {[%clk 0:00:04]} 71. Qxb7+ {[%clk 0:00:05]}  Ka5 {[%clk 0:00:05]} 72. Nc4+ {[%clk 0:00:06]}  Ka4 {[%clk 0:00:05]} 73. b3# {[%clk 0:00:07]} 1-0


[Site "https://www.chess.com"]

[Event "Titled Tuesday Blitz April 18 Early 2023"]
[White "b_6"]
[Black "Jaferian, Koosha"]
[BlackFideId "12507440"]
[WhiteElo "2471"]
[BlackElo "2073"]
[Result "1-0"]
[Round "04"]
[TimeControl "180+2"]
[Date "2023.04.18"]
[WhiteClock "0:00:14"]
[BlackClock "0:00:01"]

1. c4 {[%clk 0:03:00]}  c5 {[%clk 0:02:59]} 2. Nf3 {[%clk 0:03:00]}  Nc6 {[%clk 0:02:57]} 3. Nc3 {[%clk 0:03:00]}  g6 {[%clk 0:02:57]} 4. e3 {[%clk 0:03:00]}  Nf6 {[%clk 0:02:56]} 5. d4 {[%clk 0:03:00]}  cxd4 {[%clk 0:02:57]} 6. exd4 {[%clk 0:03:01]}  d5 {[%clk 0:02:58]} 7. cxd5 {[%clk 0:03:01]}  Nxd5 {[%clk 0:02:59]} 8. Qb3 {[%clk 0:03:02]}  Nxc3 {[%clk 0:02:58]} 9. Bc4 {[%clk 0:03:01]}  Nd5 {[%clk 0:02:58]} 10. Bxd5 {[%clk 0:03:01]}  e6 {[%clk 0:02:59]} 11. Bxc6+ {[%clk 0:02:59]}  bxc6 {[%clk 0:03:00]} 12. O-O {[%clk 0:02:55]}  Qd5 {[%clk 0:02:57]} 13. Qe3 {[%clk 0:02:50]}  f6 {[%clk 0:02:57]} 14. b3 {[%clk 0:02:38]}  Kf7 {[%clk 0:02:56]} 15. Bb2 {[%clk 0:02:33]}  Bd6 {[%clk 0:02:56]} 16. Nd2 {[%clk 0:02:25]}  Re8 {[%clk 0:02:45]} 17. Rfe1 {[%clk 0:02:17]}  Qh5 {[%clk 0:02:40]} 18. h3 {[%clk 0:02:09]}  g5 {[%clk 0:02:36]} 19. Rac1 {[%clk 0:01:57]}  Bd7 {[%clk 0:02:31]} 20. Qf3 {[%clk 0:01:53]}  Qxf3 {[%clk 0:02:21]} 21. Nxf3 {[%clk 0:01:52]}  Rec8 {[%clk 0:02:12]} 22. Rc2 {[%clk 0:01:44]}  c5 {[%clk 0:02:09]} 23. dxc5 {[%clk 0:01:43]}  Rxc5 {[%clk 0:02:08]} 24. Rd2 {[%clk 0:01:35]}  Rd5 {[%clk 0:01:51]} 25. Rxd5 {[%clk 0:01:34]}  exd5 {[%clk 0:01:52]} 26. Bd4 {[%clk 0:01:34]}  a5 {[%clk 0:01:48]} 27. Rc1 {[%clk 0:01:15]}  a4 {[%clk 0:01:46]} 28. Bc5 {[%clk 0:01:14]}  Bf4 {[%clk 0:01:34]} 29. Be3 {[%clk 0:01:12]}  Bd6 {[%clk 0:01:24]} 30. Bc5 {[%clk 0:01:12]}  Bf4 {[%clk 0:01:01]} 31. Be3 {[%clk 0:01:11]}  Bxe3 {[%clk 0:01:01]} 32. fxe3 {[%clk 0:01:12]}  a3 {[%clk 0:00:56]} 33. Rc5 {[%clk 0:01:00]}  Bf5 {[%clk 0:00:51]} 34. Rxd5 {[%clk 0:00:54]}  Kg6 {[%clk 0:00:40]} 35. Rd2 {[%clk 0:00:49]}  Rc8 {[%clk 0:00:38]} 36. Nd4 {[%clk 0:00:48]}  Rc1+ {[%clk 0:00:38]} 37. Kf2 {[%clk 0:00:48]}  Rb1 {[%clk 0:00:30]} 38. Nb5 {[%clk 0:00:44]}  Rb2 {[%clk 0:00:27]} 39. Ke1 {[%clk 0:00:42]}  Rb1+ {[%clk 0:00:26]} 40. Rd1 {[%clk 0:00:38]}  Rb2 {[%clk 0:00:22]} 41. Rd2 {[%clk 0:00:38]}  Rb1+ {[%clk 0:00:23]} 42. Ke2 {[%clk 0:00:35]}  Rg1 {[%clk 0:00:20]} 43. Kf2 {[%clk 0:00:35]}  Ra1 {[%clk 0:00:12]} 44. Nxa3 {[%clk 0:00:35]}  h5 {[%clk 0:00:13]} 45. Nb5 {[%clk 0:00:33]}  h4 {[%clk 0:00:12]} 46. a4 {[%clk 0:00:33]}  Rb1 {[%clk 0:00:12]} 47. Nd4 {[%clk 0:00:33]}  Bd7 {[%clk 0:00:11]} 48. Ke2 {[%clk 0:00:24]}  Rg1 {[%clk 0:00:11]} 49. Kf2 {[%clk 0:00:24]}  Rb1 {[%clk 0:00:09]} 50. Ra2 {[%clk 0:00:23]}  Bc8 {[%clk 0:00:05]} 51. a5 {[%clk 0:00:21]}  Ba6 {[%clk 0:00:06]} 52. Ne2 {[%clk 0:00:21]}  f5 {[%clk 0:00:03]} 53. Rd2 {[%clk 0:00:18]}  Kh5 {[%clk 0:00:02]} 54. g3 {[%clk 0:00:13]}  hxg3+ {[%clk 0:00:01]} 55. Nxg3+ {[%clk 0:00:14]} 1-0


[Site "https://www.chess.com"]

[Event "Titled Tuesday Blitz April 18 Early 2023"]
[White "Bilych, Olexiy"]
[Black "HamedWafa4"]
[WhiteFideId "14156504"]
[WhiteElo "2320"]
[BlackElo "2466"]
[Result "0-1"]
[Round "04"]
[TimeControl "180+2"]
[Date "2023.04.18"]
[WhiteClock "0:00:10"]
[BlackClock "0:00:12"]

1. d4 {[%clk 0:03:00]}  Nf6 {[%clk 0:02:59]} 2. c4 {[%clk 0:02:57]}  e6 {[%clk 0:02:58]} 3. Nf3 {[%clk 0:02:57]}  Bb4+ {[%clk 0:02:50]} 4. Nbd2 {[%clk 0:02:55]}  O-O {[%clk 0:02:47]} 5. a3 {[%clk 0:02:56]}  Bxd2+ {[%clk 0:02:47]} 6. Bxd2 {[%clk 0:02:56]}  b6 {[%clk 0:02:48]} 7. Bg5 {[%clk 0:02:55]}  Bb7 {[%clk 0:02:47]} 8. e3 {[%clk 0:02:56]}  h6 {[%clk 0:02:46]} 9. Bh4 {[%clk 0:02:56]}  d6 {[%clk 0:02:47]} 10. Bd3 {[%clk 0:02:53]}  Nbd7 {[%clk 0:02:47]} 11. O-O {[%clk 0:02:53]}  Qe7 {[%clk 0:02:42]} 12. Qc2 {[%clk 0:02:32]}  Bxf3 {[%clk 0:02:17]} 13. gxf3 {[%clk 0:02:33]}  g5 {[%clk 0:02:17]} 14. Bg3 {[%clk 0:02:33]}  Nh5 {[%clk 0:02:17]} 15. d5 {[%clk 0:02:00]}  Nxg3 {[%clk 0:02:13]} 16. hxg3 {[%clk 0:01:59]}  Ne5 {[%clk 0:01:56]} 17. Kg2 {[%clk 0:01:56]}  Qf6 {[%clk 0:01:50]} 18. Be4 {[%clk 0:01:47]}  Rae8 {[%clk 0:01:49]} 19. Rh1 {[%clk 0:01:45]}  Kg7 {[%clk 0:01:48]} 20. Rh5 {[%clk 0:01:44]}  Rh8 {[%clk 0:01:38]} 21. Rah1 {[%clk 0:01:43]}  a5 {[%clk 0:01:35]} 22. f4 {[%clk 0:01:37]}  gxf4 {[%clk 0:01:32]} 23. exf4 {[%clk 0:01:37]}  Nd7 {[%clk 0:01:28]} 24. b4 {[%clk 0:01:31]}  axb4 {[%clk 0:01:25]} 25. axb4 {[%clk 0:01:32]}  Qd4 {[%clk 0:01:11]} 26. Rd1 {[%clk 0:01:27]}  Qf6 {[%clk 0:01:07]} 27. Qe2 {[%clk 0:01:28]}  Qc3 {[%clk 0:00:53]} 28. dxe6 {[%clk 0:01:25]}  Rxe6 {[%clk 0:00:49]} 29. Qg4+ {[%clk 0:01:24]}  Kf8 {[%clk 0:00:49]} 30. Bf5 {[%clk 0:01:21]}  Nf6 {[%clk 0:00:46]} 31. Qh4 {[%clk 0:01:11]}  Nxh5 {[%clk 0:00:28]} 32. Bxe6 {[%clk 0:01:08]}  Nf6 {[%clk 0:00:28]} 33. Bd5 {[%clk 0:00:44]}  Nxd5 {[%clk 0:00:22]} 34. cxd5 {[%clk 0:00:44]}  Qxb4 {[%clk 0:00:20]} 35. Qd8+ {[%clk 0:00:42]}  Kg7 {[%clk 0:00:19]} 36. Qxc7 {[%clk 0:00:42]}  Qe4+ {[%clk 0:00:20]} 37. Kg1 {[%clk 0:00:40]}  Qf3 {[%clk 0:00:18]} 38. Re1 {[%clk 0:00:35]}  Qxd5 {[%clk 0:00:17]} 39. Qxb6 {[%clk 0:00:30]}  Ra8 {[%clk 0:00:13]} 40. Qb2+ {[%clk 0:00:30]}  Kg8 {[%clk 0:00:13]} 41. Qf6 {[%clk 0:00:29]}  Qd2 {[%clk 0:00:10]} 42. Kf1 {[%clk 0:00:20]}  Qd3+ {[%clk 0:00:10]} 43. Kg2 {[%clk 0:00:20]}  Qd5+ {[%clk 0:00:10]} 44. Kg1 {[%clk 0:00:18]}  Qd2 {[%clk 0:00:09]} 45. Re3 {[%clk 0:00:18]}  Qd1+ {[%clk 0:00:09]} 46. Kg2 {[%clk 0:00:19]}  Qd5+ {[%clk 0:00:08]} 47. Kg1 {[%clk 0:00:13]}  Qd1+ {[%clk 0:00:06]} 48. Kg2 {[%clk 0:00:11]}  Qd5+ {[%clk 0:00:06]} 49. f3 {[%clk 0:00:07]}  Qd2+ {[%clk 0:00:06]} 50. Kh3 {[%clk 0:00:05]}  Qxe3 {[%clk 0:00:07]} 51. Qxh6 {[%clk 0:00:06]}  Qe6+ {[%clk 0:00:06]} 52. Qxe6 {[%clk 0:00:05]}  fxe6 {[%clk 0:00:07]} 53. f5 {[%clk 0:00:05]}  Ra5 {[%clk 0:00:08]} 54. g4 {[%clk 0:00:06]}  exf5 {[%clk 0:00:08]} 55. gxf5 {[%clk 0:00:07]}  Rxf5 {[%clk 0:00:09]} 56. Kg4 {[%clk 0:00:08]}  Rf6 {[%clk 0:00:09]} 57. f4 {[%clk 0:00:08]}  Kf7 {[%clk 0:00:10]} 58. f5 {[%clk 0:00:08]}  d5 {[%clk 0:00:11]} 59. Kf4 {[%clk 0:00:09]}  d4 {[%clk 0:00:11]} 60. Ke5 {[%clk 0:00:10]}  d3 {[%clk 0:00:12]} 0-1


[Site "https://www.chess.com"]

[Event "Titled Tuesday Blitz April 18 Early 2023"]
[White "Martinez Ramirez, Lennis"]
[Black "Pein, Jonathan"]
[WhiteFideId "3509079"]
[BlackFideId "417092"]
[WhiteElo "2410"]
[BlackElo "2151"]
[Result "1-0"]
[Round "04"]
[TimeControl "180+2"]
[Date "2023.04.18"]
[WhiteClock "0:00:14"]
[BlackClock "0:00:25"]

1. d4 {[%clk 0:02:53]}  d6 {[%clk 0:02:59]} 2. e4 {[%clk 0:02:53]}  Nf6 {[%clk 0:02:59]} 3. Bd3 {[%clk 0:02:51]}  e5 {[%clk 0:02:59]} 4. c3 {[%clk 0:02:49]}  g6 {[%clk 0:02:58]} 5. f4 {[%clk 0:02:48]}  exd4 {[%clk 0:02:58]} 6. cxd4 {[%clk 0:02:47]}  Bg7 {[%clk 0:02:57]} 7. Nc3 {[%clk 0:02:46]}  O-O {[%clk 0:02:57]} 8. Nf3 {[%clk 0:02:46]}  Bg4 {[%clk 0:02:56]} 9. h3 {[%clk 0:02:46]}  Bxf3 {[%clk 0:02:56]} 10. Qxf3 {[%clk 0:02:46]}  Nc6 {[%clk 0:02:57]} 11. Qf2 {[%clk 0:02:46]}  Nxd4 {[%clk 0:02:52]} 12. Qxd4 {[%clk 0:02:42]}  Nxe4 {[%clk 0:02:52]} 13. Qxe4 {[%clk 0:02:17]}  Re8 {[%clk 0:02:49]} 14. O-O {[%clk 0:02:17]}  Rxe4 {[%clk 0:02:47]} 15. Bxe4 {[%clk 0:02:17]}  c6 {[%clk 0:02:45]} 16. f5 {[%clk 0:02:13]}  d5 {[%clk 0:02:41]} 17. Bf3 {[%clk 0:02:07]}  Qb6+ {[%clk 0:02:34]} 18. Kh1 {[%clk 0:02:06]}  Re8 {[%clk 0:02:34]} 19. fxg6 {[%clk 0:02:05]}  hxg6 {[%clk 0:02:34]} 20. a4 {[%clk 0:02:02]}  a6 {[%clk 0:02:26]} 21. a5 {[%clk 0:02:02]}  Qb4 {[%clk 0:02:26]} 22. Ra4 {[%clk 0:02:02]}  Qd6 {[%clk 0:02:21]} 23. Bf4 {[%clk 0:02:00]}  Be5 {[%clk 0:02:07]} 24. Bxe5 {[%clk 0:01:32]}  Rxe5 {[%clk 0:02:08]} 25. Ne2 {[%clk 0:01:25]}  Re3 {[%clk 0:02:00]} 26. Rf4 {[%clk 0:01:13]}  Qd8 {[%clk 0:01:44]} 27. Rb4 {[%clk 0:01:01]}  Re7 {[%clk 0:01:40]} 28. Rd1 {[%clk 0:00:36]}  Qxa5 {[%clk 0:01:38]} 29. Rh4 {[%clk 0:00:33]}  Qb5 {[%clk 0:01:19]} 30. Rd2 {[%clk 0:00:22]}  Qa5 {[%clk 0:01:19]} 31. b4 {[%clk 0:00:20]}  Qa1+ {[%clk 0:01:16]} 32. Kh2 {[%clk 0:00:20]}  Qe1 {[%clk 0:01:09]} 33. Rhd4 {[%clk 0:00:20]}  Rxe2 {[%clk 0:01:05]} 34. Rxe2 {[%clk 0:00:18]}  Qc3 {[%clk 0:01:04]} 35. Rf4 {[%clk 0:00:17]}  g5 {[%clk 0:01:00]} 36. Rf5 {[%clk 0:00:17]}  f6 {[%clk 0:00:58]} 37. Re6 {[%clk 0:00:16]}  Kf7 {[%clk 0:00:53]} 38. Rd6 {[%clk 0:00:12]}  Ke7 {[%clk 0:00:47]} 39. Rdxf6 {[%clk 0:00:12]}  Qxf6 {[%clk 0:00:48]} 40. Rxf6 {[%clk 0:00:13]}  Kxf6 {[%clk 0:00:48]} 41. Kg3 {[%clk 0:00:13]}  Kf5 {[%clk 0:00:44]} 42. Bg4+ {[%clk 0:00:13]}  Ke5 {[%clk 0:00:44]} 43. Bc8 {[%clk 0:00:14]}  b6 {[%clk 0:00:38]} 44. Bxa6 {[%clk 0:00:14]}  c5 {[%clk 0:00:39]} 45. bxc5 {[%clk 0:00:14]}  bxc5 {[%clk 0:00:40]} 46. Kg4 {[%clk 0:00:15]}  Kf6 {[%clk 0:00:26]} 47. Bb7 {[%clk 0:00:12]}  d4 {[%clk 0:00:21]} 48. Ba6 {[%clk 0:00:13]}  Ke5 {[%clk 0:00:14]} 49. Kxg5 {[%clk 0:00:07]}  Kd5 {[%clk 0:00:15]} 50. Kf4 {[%clk 0:00:07]}  c4 {[%clk 0:00:16]} 51. Kf3 {[%clk 0:00:07]}  d3 {[%clk 0:00:10]} 52. Ke3 {[%clk 0:00:07]}  Ke5 {[%clk 0:00:10]} 53. Bxc4 {[%clk 0:00:06]}  d2 {[%clk 0:00:10]} 54. Kxd2 {[%clk 0:00:06]}  Kf4 {[%clk 0:00:11]} 55. Bd5 {[%clk 0:00:06]}  Kg5 {[%clk 0:00:12]} 56. Bf3 {[%clk 0:00:07]}  Kh6 {[%clk 0:00:12]} 57. Ke2 {[%clk 0:00:08]}  Kg7 {[%clk 0:00:13]} 58. Ke3 {[%clk 0:00:07]}  Kh6 {[%clk 0:00:14]} 59. Kf4 {[%clk 0:00:08]}  Kg7 {[%clk 0:00:15]} 60. Kg4 {[%clk 0:00:09]}  Kh6 {[%clk 0:00:16]} 61. h4 {[%clk 0:00:09]}  Kg7 {[%clk 0:00:17]} 62. h5 {[%clk 0:00:10]}  Kh6 {[%clk 0:00:18]} 63. Kh4 {[%clk 0:00:10]}  Kg7 {[%clk 0:00:19]} 64. Kg5 {[%clk 0:00:11]}  Kh7 {[%clk 0:00:19]} 65. h6 {[%clk 0:00:12]}  Kh8 {[%clk 0:00:19]} 66. Be4 {[%clk 0:00:12]}  Kg8 {[%clk 0:00:20]} 67. Kg6 {[%clk 0:00:12]}  Kh8 {[%clk 0:00:21]} 68. g4 {[%clk 0:00:12]}  Kg8 {[%clk 0:00:22]} 69. Kf6 {[%clk 0:00:13]}  Kh8 {[%clk 0:00:23]} 70. g5 {[%clk 0:00:13]}  Kg8 {[%clk 0:00:24]} 71. g6 {[%clk 0:00:14]}  Kh8 {[%clk 0:00:24]} 72. g7+ {[%clk 0:00:14]}  Kg8 {[%clk 0:00:25]} 73. Bd5+ {[%clk 0:00:14]} 1-0


[Site "https://www.chess.com"]

[Event "Titled Tuesday Blitz April 18 Early 2023"]
[White "Sandoval Mercado, Carlos"]
[Black "Sammed Jaykumar, Shete"]
[WhiteFideId "5109434"]
[BlackFideId "5073421"]
[WhiteElo "2257"]
[BlackElo "2278"]
[Result "0-1"]
[Round "04"]
[TimeControl "180+2"]
[Date "2023.04.18"]
[WhiteClock "0:01:12"]
[BlackClock "0:00:48"]

1. d4 {[%clk 0:02:48]}  Nf6 {[%clk 0:02:58]} 2. Nc3 {[%clk 0:02:44]}  d5 {[%clk 0:02:56]} 3. Bf4 {[%clk 0:02:45]}  c6 {[%clk 0:02:54]} 4. e3 {[%clk 0:02:44]}  Bf5 {[%clk 0:02:53]} 5. f3 {[%clk 0:02:44]}  e6 {[%clk 0:02:51]} 6. g4 {[%clk 0:02:44]}  Bg6 {[%clk 0:02:52]} 7. h4 {[%clk 0:02:44]}  h5 {[%clk 0:02:48]} 8. g5 {[%clk 0:02:44]}  Nfd7 {[%clk 0:02:48]} 9. Bd3 {[%clk 0:02:45]}  Bxd3 {[%clk 0:02:48]} 10. Qxd3 {[%clk 0:02:46]}  Na6 {[%clk 0:02:45]} 11. O-O-O {[%clk 0:02:44]}  b5 {[%clk 0:02:36]} 12. g6 {[%clk 0:02:37]}  f6 {[%clk 0:02:35]} 13. e4 {[%clk 0:02:34]}  Nb6 {[%clk 0:01:46]} 14. Nxb5 {[%clk 0:01:46]}  Nb4 {[%clk 0:01:45]} 15. Nc7+ {[%clk 0:01:47]}  Kd7 {[%clk 0:01:32]} 16. Qe2 {[%clk 0:01:38]}  Na4 {[%clk 0:01:15]} 17. exd5 {[%clk 0:01:34]}  Nxa2+ {[%clk 0:01:09]} 18. Kd2 {[%clk 0:01:31]}  e5 {[%clk 0:01:08]} 19. Nxa8 {[%clk 0:01:25]}  Qa5+ {[%clk 0:00:50]} 20. Ke3 {[%clk 0:01:11]}  exf4+ {[%clk 0:00:49]} 21. Kxf4 {[%clk 0:01:12]}  Bd6+ {[%clk 0:00:48]} 0-1


[Site "https://www.chess.com"]

[Event "Titled Tuesday Blitz April 18 Early 2023"]
[White "Skvortsov, Andrei"]
[Black "Liu, Casper"]
[WhiteFideId "24108600"]
[BlackFideId "1454153"]
[WhiteElo "2259"]
[BlackElo "2221"]
[Result "1-0"]
[Round "04"]
[TimeControl "180+2"]
[Date "2023.04.18"]
[WhiteClock "0:01:52"]
[BlackClock "0:00:06"]

1. e4 {[%clk 0:03:00]}  c5 {[%clk 0:02:22]} 2. d4 {[%clk 0:02:59]}  cxd4 {[%clk 0:02:20]} 3. Qxd4 {[%clk 0:03:00]}  Nc6 {[%clk 0:02:18]} 4. Qd3 {[%clk 0:03:01]}  g6 {[%clk 0:02:18]} 5. Nc3 {[%clk 0:03:01]}  Bg7 {[%clk 0:02:18]} 6. Nf3 {[%clk 0:03:01]}  Nf6 {[%clk 0:02:16]} 7. Be2 {[%clk 0:03:02]}  O-O {[%clk 0:02:15]} 8. O-O {[%clk 0:03:02]}  d6 {[%clk 0:02:16]} 9. Nd5 {[%clk 0:03:03]}  Be6 {[%clk 0:02:10]} 10. c3 {[%clk 0:03:01]}  Rc8 {[%clk 0:02:09]} 11. Rd1 {[%clk 0:03:00]}  a6 {[%clk 0:01:57]} 12. Bg5 {[%clk 0:02:51]}  Bxd5 {[%clk 0:01:35]} 13. exd5 {[%clk 0:02:48]}  Ne5 {[%clk 0:01:36]} 14. Nxe5 {[%clk 0:02:43]}  dxe5 {[%clk 0:01:36]} 15. d6 {[%clk 0:02:35]}  exd6 {[%clk 0:01:22]} 16. Bf3 {[%clk 0:02:35]}  h6 {[%clk 0:00:13]} 17. Bxf6 {[%clk 0:02:33]}  Qxf6 {[%clk 0:00:14]} 18. Bxb7 {[%clk 0:02:29]}  Rb8 {[%clk 0:00:13]} 19. Qxa6 {[%clk 0:02:29]}  Qe7 {[%clk 0:00:07]} 20. Be4 {[%clk 0:02:23]}  Rxb2 {[%clk 0:00:07]} 21. Qxd6 {[%clk 0:02:19]}  Qa7 {[%clk 0:00:07]} 22. Rf1 {[%clk 0:01:54]}  Rxa2 {[%clk 0:00:07]} 23. Rxa2 {[%clk 0:01:54]}  Qxa2 {[%clk 0:00:07]} 24. Bd5 {[%clk 0:01:55]}  Qd2 {[%clk 0:00:06]} 25. Bxf7+ {[%clk 0:01:52]} 1-0


[Site "https://www.chess.com"]